bitfinex-derivatives/quotes_BTCF0:USTF0_20251011
["timestamp","ask_amount","ask_price","bid_price","bid_amount"]
[1760150677688,0.97002536,113240.0,113220.0,0.02304]
[1760150678177,0.39607,113230.0,113220.0,0.02304]
[1760150678383,0.15680313,113230.0,113220.0,0.1112836]
[1760150678683,0.13472313,113230.0,113220.0,0.2008336]
[1760150678887,0.02211598,113240.0,113230.0,0.0882358]
[1760150679083,0.00882598,113240.0,113230.0,0.1908458]
[1760150679276,0.39686,113250.0,113240.0,0.02261]
[1760150679478,0.38357,113250.0,113240.0,0.110838]
[1760150679682,0.37409,113260.0,113240.0,0.531638]
[1760150679883,0.54356437,113260.0,113240.0,0.183688]
[1760150680089,0.53356437,113260.0,113240.0,0.1236879]
[1760150680288,0.1109902,113250.0,113240.0,0.02261]
[1760150680483,0.1109902,113250.0,113230.0,0.02261]
[1760150680484,0.02277,113240.0,113230.0,0.02261]
[1760150680684,0.52895723,113240.0,113230.0,0.02261]
[1760150680982,0.484988,113240.0,113230.0,0.02261]
[1760150681184,0.3608,113250.0,113230.0,0.55216]
[1760150681383,0.48416879,113260.0,113250.0,0.02261]
[1760150681588,0.57238119,113260.0,113230.0,0.00955]
[1760150681884,0.57238119,113260.0,113240.0,0.02261]
[1760150681885,0.39676,113250.0,113240.0,0.02261]
[1760150682091,0.4849802,113250.0,113240.0,0.02261]
[1760150682886,0.03596,113250.0,113240.0,0.02261]
[1760150683181,0.39676,113250.0,113240.0,0.02261]
[1760150683386,0.03596,113250.0,113240.0,0.02261]
[1760150683887,0.02277,113250.0,113240.0,0.02261]
[1760150684088,0.15355312,113250.0,113240.0,0.02261]
[1760150684283,0.54961339,113260.0,113240.0,0.03546]
[1760150684490,0.46139879,113260.0,113240.0,0.39626]
[1760150684989,0.02277,113250.0,113240.0,0.38341]
[1760150685190,0.10059879,113260.0,113240.0,0.4844863]
[1760150685384,0.07126187,113260.0,113250.0,0.1203702]
[1760150685696,0.01319,113280.0,113250.0,0.4911702]
[1760150685992,0.37399,113270.0,113250.0,0.40295]
[1760150686288,0.38982396,113270.0,113250.0,0.40295]
[1760150686490,0.07092392,113270.0,113260.0,0.39626]
[1760150686691,0.37399,113290.0,113260.0,0.6244726]
[1760150686892,0.01319,113290.0,113260.0,0.6244726]
[1760150687194,0.37399,113290.0,113260.0,0.6244726]
[1760150687391,0.39676,113290.0,113280.0,0.02261]
[1760150687586,0.05164581,113290.0,113280.0,0.02261]
[1760150687792,0.01568581,113290.0,113280.0,0.02261]
[1760150687996,0.38357,113290.0,113280.0,0.02261]
[1760150688194,0.09306066,113290.0,113280.0,0.02261]
[1760150688996,0.07029066,113290.0,113280.0,0.38341]
[1760150689189,0.37399,113300.0,113280.0,0.4844486]
[1760150689389,0.37399,113300.0,113280.0,0.39626]
[1760150689590,0.4621635,113300.0,113280.0,0.02261]
[1760150689795,0.02282,113290.0,113280.0,0.02261]
[1760150690096,0.37399,113300.0,113280.0,0.02261]
[1760150690398,0.49514872,113300.0,113280.0,0.4844448]
[1760150690594,0.13434872,113300.0,113290.0,0.03275]
[1760150690796,0.2802775,113310.0,113290.0,0.4817307]
[1760150691099,0.4621398,113330.0,113300.0,0.39686]
[1760150691297,0.4621398,113330.0,113300.0,0.03606]
[1760150691298,0.01326,113320.0,113300.0,0.03606]
[1760150691492,0.44505835,113320.0,113300.0,0.03606]
[1760150691692,0.53321775,113320.0,113300.0,0.03606]
[1760150691996,0.10707835,113320.0,113310.0,0.02321]
[1760150692194,0.07099835,113320.0,113310.0,0.02321]
[1760150692400,0.03608,113320.0,113310.0,0.02321]
[1760150692693,0.02895608,113330.0,113310.0,0.39356]
[1760150692895,0.01576608,113330.0,113310.0,0.4817234]
[1760150693093,0.02282,113330.0,113320.0,0.38401]
[1760150693294,0.1242351,113330.0,113310.0,0.3608]
[1760150693502,0.02282,113280.0,113250.0,0.37034]
[1760150693687,0.38362,113260.0,113250.0,0.02321]
[1760150693997,0.37406,113270.0,113250.0,0.03606]
[1760150694190,0.39406,113270.0,113250.0,0.07606]
[1760150694597,0.462242,113290.0,113260.0,0.03276]
[1760150694797,0.4489889,113280.0,113260.0,0.04276]
[1760150695193,0.4489963,113270.0,113260.0,0.03321]
[1760150695390,0.4850763,113270.0,113260.0,0.03321]
[1760150695589,0.89035804,113270.0,113260.0,0.02321]
[1760150695788,0.46225,113280.0,113260.0,0.02321]
[1760150695994,0.3608,113280.0,113260.0,0.05276]
[1760150696193,0.4489887,113280.0,113260.0,0.05276]
[1760150696799,0.0881963,113270.0,113260.0,0.05276]
[1760150696996,0.3608,113280.0,113260.0,0.03276]
[1760150697196,0.4622419,113290.0,113280.0,0.02321]
[1760150697401,0.4850619,113290.0,113280.0,0.02321]
[1760150697699,0.39688,113290.0,113280.0,0.02321]
[1760150698105,0.89034244,113290.0,113260.0,0.00955]
[1760150698402,0.1110099,113280.0,113270.0,0.02321]
[1760150698601,0.1242699,113280.0,113270.0,0.03]
[1760150698792,0.92955164,113280.0,113270.0,0.03]
[1760150699305,0.39688,113280.0,113270.0,0.05321]
[1760150700103,0.4850685,113280.0,113270.0,0.05321]
[1760150700301,0.4850685,113280.0,113270.0,0.03]
[1760150700302,1.29035024,113280.0,113270.0,0.03]
[1760150700500,0.8850685,113280.0,113270.0,0.03]
[1760150700696,1.29035024,113280.0,113270.0,0.03]
[1760150701099,0.1243003,113240.0,113230.0,0.02321]
[1760150701300,0.3608,113270.0,113240.0,0.0882196]
[1760150701602,0.3608,113270.0,113260.0,0.02321]
[1760150701903,0.3608,113270.0,113230.0,0.37365]
[1760150701904,0.1014642,113260.0,113230.0,0.37365]
[1760150702110,0.02282,113250.0,113240.0,0.02321]
[1760150702299,0.39688,113250.0,113240.0,0.01]
[1760150702599,0.8850918,113250.0,113240.0,0.01]
[1760150703496,0.01326,113230.0,113210.0,0.36131]
[1760150703694,0.37406,113230.0,113210.0,0.12051]
[1760150704099,0.3608,113280.0,113260.0,0.00955]
[1760150704303,0.3608,113280.0,113260.0,0.13955]
[1760150704504,0.01326,113270.0,113260.0,0.13]
[1760150705100,0.01984425,113270.0,113260.0,0.218204]
[1760150705503,0.01984425,113270.0,113260.0,0.13]
[1760150705902,0.03608846,113270.0,113260.0,0.13]
[1760150706099,0.03808846,113270.0,113260.0,0.13]
[1760150706407,0.05134846,113270.0,113260.0,0.13]
[1760150706702,0.90034476,113270.0,113260.0,0.13]
[1760150707003,0.41214846,113270.0,113260.0,0.13]
[1760150707406,0.03152681,113310.0,113290.0,0.0881807]
[1760150707601,0.04780811,113320.0,113300.0,0.76608174]
[1760150707797,13.15046,113350.0,113340.0,0.0881418]
[1760150707798,12.73203671,113350.0,113340.0,0.0881418]
[1760150708003,12.71966,113350.0,113340.0,0.4908]
[1760150708303,12.71966,113350.0,113340.0,0.5789418]
[1760150708509,12.71966,113350.0,113340.0,0.8908]
[1760150709206,12.71966,113350.0,113340.0,0.9789418]
[1760150709514,12.72066,113350.0,113340.0,0.9789418]
[1760150710411,12.72066,113350.0,113340.0,0.4908]
[1760150710607,12.72066,113350.0,113340.0,0.13]
[1760150711311,12.72066,113350.0,113340.0,0.9789418]
[1760150712505,12.72066,113350.0,113340.0,0.13]
[1760150712702,12.72066,113350.0,113340.0,0.9789418]
[1760150712903,12.72066,113350.0,113340.0,0.6181418]
[1760150713111,12.72066,113350.0,113340.0,0.9789418]
[1760150713311,12.72066,113350.0,113340.0,0.53]
[1760150714314,12.72066,113350.0,113340.0,0.13]
[1760150714611,12.72066,113350.0,113340.0,0.5789418]
[1760150715214,12.72066,113350.0,113340.0,0.4908]
[1760150715615,12.72066,113350.0,113340.0,0.13]
[1760150715920,12.72066,113350.0,113340.0,0.5789418]
[1760150716417,12.72066,113350.0,113340.0,0.9789418]
[1760150718619,12.72066,113350.0,113340.0,0.13]
[1760150722121,13.97487574,113350.0,113340.0,0.09810859]
[1760150722317,13.97487574,113350.0,113280.0,0.02174379]
[1760150722318,0.01371,113290.0,113280.0,0.02174379]
[1760150722513,0.01371,113290.0,113280.0,0.14174379]
[1760150723011,0.4626907,113290.0,113280.0,0.02174379]
[1760150723519,1.26797244,113290.0,113280.0,0.02174379]
[1760150723719,1.26797244,113290.0,113280.0,0.02274379]
[1760150724013,1.28384775,113290.0,113280.0,0.02274379]
[1760150724219,1.28384775,113290.0,113280.0,0.02174379]
[1760150725318,1.25355775,113290.0,113280.0,0.02174379]
[1760150725519,1.25355775,113290.0,113280.0,0.03174379]
[1760150726511,0.39038531,113290.0,113280.0,0.03174379]
[1760150726721,0.02958531,113290.0,113280.0,0.03174379]
[1760150726927,0.88384775,113290.0,113280.0,0.03174379]
[1760150727119,1.28384775,113290.0,113280.0,0.03174379]
[1760150727520,1.28384775,113290.0,113280.0,0.02174379]
[1760150728518,0.01371,113280.0,113220.0,0.0882338]
[1760150728720,0.01371,113240.0,113220.0,0.12]
[1760150729114,0.01371,113240.0,113220.0,0.2082351]
[1760150729619,9.25e-05,113230.0,113220.0,0.2082351]
[1760150729822,9.25e-05,113230.0,113220.0,0.5690351]
[1760150730121,9.25e-05,113230.0,113220.0,0.12]
[1760150730320,0.07028632,113230.0,113220.0,0.12]
[1760150730514,9.25e-05,113230.0,113220.0,0.4808]
[1760150730715,9.25e-05,113230.0,113220.0,0.5690352]
[1760150731217,9.25e-05,113230.0,113220.0,0.2082352]
[1760150731720,9.25e-05,113230.0,113220.0,0.12]
[1760150731922,9.25e-05,113230.0,113220.0,0.2082352]
[1760150732122,9.25e-05,113230.0,113220.0,0.5690352]
[1760150732322,0.4490118,113250.0,113230.0,0.01367]
[1760150732622,0.4490118,113250.0,113230.0,0.15367]
[1760150732623,0.51785975,113250.0,113230.0,0.15367]
[1760150733420,0.0882196,113240.0,113230.0,0.15367]
[1760150733620,0.4490196,113240.0,113230.0,0.15367]
[1760150734224,0.58023778,113240.0,113230.0,0.15367]
[1760150734521,0.21943778,113240.0,113230.0,0.15367]
[1760150734722,0.58023778,113240.0,113230.0,0.15367]
[1760150734923,0.21943778,113240.0,113230.0,0.15367]
[1760150735116,0.58023778,113240.0,113230.0,0.15367]
[1760150735624,0.60269778,113240.0,113230.0,0.17638]
[1760150735821,0.58023778,113240.0,113230.0,0.17638]
[1760150736019,0.13121818,113240.0,113230.0,0.17638]
[1760150736218,0.4714796,113240.0,113230.0,0.14]
[1760150736526,0.1106796,113240.0,113230.0,0.16271]
[1760150736719,0.1106796,113240.0,113230.0,0.17638]
[1760150736720,0.0882196,113240.0,113230.0,0.17638]
[1760150736924,0.42964795,113250.0,113230.0,0.17638]
[1760150737127,0.0882196,113240.0,113230.0,0.17638]
[1760150737320,0.4490196,113240.0,113230.0,0.17638]
[1760150737522,0.4714796,113240.0,113230.0,0.16271]
[1760150738329,0.60126891,113240.0,113230.0,0.16271]
[1760150738624,1.41996065,113240.0,113230.0,0.14]
[1760150738818,0.60086051,113240.0,113230.0,0.03701]
[1760150739017,0.60086051,113240.0,113230.0,0.02333]
[1760150739218,0.1102774,113230.0,113220.0,0.03701]
[1760150739529,0.4270774,113230.0,113220.0,0.14701]
[1760150739726,0.0662774,113230.0,113220.0,0.14701]
[1760150739924,0.4270774,113230.0,113220.0,0.14701]
[1760150740232,0.08225287,113230.0,113220.0,0.14701]
[1760150740417,0.44305287,113230.0,113220.0,0.14701]
[1760150740824,0.08225287,113230.0,113220.0,0.14701]
[1760150741332,0.01597547,113230.0,113220.0,0.14701]
[1760150741522,0.98409415,113240.0,113220.0,0.14701]
[1760150741829,0.4710774,113230.0,113220.0,0.14701]
[1760150742024,0.02205,113230.0,113220.0,0.14701]
[1760150742235,0.1102774,113230.0,113220.0,0.14701]
[1760150742723,0.4710774,113230.0,113220.0,0.13333]
[1760150742924,0.4710774,113230.0,113220.0,0.14701]
[1760150743329,0.1102774,113230.0,113220.0,0.14701]
[1760150743925,0.4710774,113230.0,113220.0,0.13333]
[1760150744826,0.4710774,113230.0,113220.0,0.14701]
[1760150745533,0.41215749,113230.0,113220.0,0.14701]
[1760150745927,0.13958489,113230.0,113220.0,0.14701]
[1760150746125,0.50038489,113230.0,113220.0,0.14701]
[1760150746330,0.13958489,113230.0,113220.0,0.14701]
[1760150746532,0.50038489,113230.0,113220.0,0.14701]
[1760150746832,0.02930749,113230.0,113220.0,0.14701]
[1760150747033,0.57881521,113240.0,113230.0,0.01368]
[1760150747336,0.60086521,113240.0,113230.0,0.04333]
[1760150747521,0.97114694,113240.0,113230.0,0.04333]
[1760150747722,0.98455694,113240.0,113230.0,0.04333]
[1760150747932,1.38455694,113240.0,113230.0,0.02]
[1760150749537,1.41366867,113240.0,113230.0,0.02]
[1760150750435,1.00838693,113240.0,113230.0,0.04333]
[1760150750634,0.99497693,113240.0,113230.0,0.05707]
[1760150751228,0.12390103,113240.0,113230.0,0.5060974]
[1760150751531,0.12390103,113240.0,113230.0,0.05707]
[1760150751532,0.1098596,113240.0,113230.0,0.05707]
[1760150751837,0.1098596,113240.0,113230.0,0.04333]
[1760150751838,0.51250451,113240.0,113230.0,0.04333]
[1760150752334,0.91778625,113240.0,113230.0,0.02]
[1760150752930,0.91778625,113240.0,113230.0,0.04325]
[1760150753133,0.49868451,113240.0,113230.0,0.05699]
[1760150753334,0.49868451,113240.0,113230.0,0.04325]
[1760150753335,0.51250451,113240.0,113230.0,0.04325]
[1760150753632,0.51250451,113240.0,113230.0,0.02]
[1760150754033,0.51250451,113240.0,113230.0,0.04325]
[1760150754234,0.91778625,113240.0,113230.0,0.04325]
[1760150756033,0.91778625,113240.0,113230.0,0.02]
[1760150756233,1.81125976,113240.0,113230.0,0.02]
[1760150756433,0.02164,113220.0,113210.0,0.03692]
[1760150756639,0.02164,113220.0,113210.0,0.16692]
[1760150756836,0.1098752,113220.0,113210.0,0.16692]
[1760150757036,0.51515694,113220.0,113210.0,0.16692]
[1760150757333,1.28977694,113220.0,113210.0,0.13]
[1760150757641,0.8844952,113220.0,113210.0,0.13]
[1760150757840,0.8844952,113220.0,113210.0,0.15325]
[1760150758738,0.8844952,113220.0,113210.0,0.13]
[1760150759538,0.8844952,113220.0,113210.0,0.15325]
[1760150759735,0.4706752,113220.0,113210.0,0.15325]
[1760150760646,0.4844952,113220.0,113210.0,0.15325]
[1760150761643,1.22986698,113220.0,113210.0,0.13]
[1760150761838,1.73986698,113220.0,113210.0,0.13]
[1760150762046,0.02164,113200.0,113190.0,0.03699]
[1760150762235,0.4266903,113210.0,113200.0,0.03699]
[1760150762441,0.4483303,113210.0,113200.0,0.14699]
[1760150762941,0.4266903,113210.0,113200.0,0.14699]
[1760150763336,0.0658903,113210.0,113200.0,0.14699]
[1760150763542,0.4483303,113210.0,113200.0,0.14699]
[1760150768144,0.02164,113210.0,113200.0,0.14699]
[1760150768452,0.470683,113210.0,113200.0,0.14699]
[1760150768948,0.109883,113210.0,113200.0,0.14699]
[1760150769849,0.426683,113210.0,113200.0,0.14699]
[1760150770149,0.448403,113210.0,113200.0,0.14699]
[1760150772144,0.39216484,113230.0,113220.0,0.02287]
[1760150772347,0.50021915,113230.0,113220.0,0.146]
[1760150772654,1.26731093,113230.0,113220.0,0.11]
[1760150772951,0.109963,113210.0,113200.0,0.03661]
[1760150773142,0.49058991,113210.0,113200.0,0.12]
[1760150773344,0.1099708,113200.0,113190.0,0.01374]
[1760150773547,0.4707708,113200.0,113190.0,0.16661]
[1760150773845,0.4707708,113200.0,113190.0,0.14374]
[1760150774248,0.4707708,113200.0,113190.0,0.03661]
[1760150774452,0.02172,113200.0,113190.0,0.15661]
[1760150774749,0.82577622,113220.0,113190.0,1.0056686]
[1760150774959,0.02172,113220.0,113210.0,0.036]
[1760150775249,0.4707511,113230.0,113220.0,0.036]
[1760150775448,0.19326058,113240.0,113230.0,0.01313]
[1760150775649,0.57578058,113240.0,113230.0,0.166]
[1760150775854,0.66400058,113240.0,113230.0,0.166]
[1760150776250,0.63263574,113240.0,113230.0,0.166]
[1760150776949,0.17979197,113240.0,113230.0,0.566]
[1760150777148,0.03173732,113240.0,113230.0,1.0150269]
[1760150777348,0.03173732,113240.0,113230.0,0.6542269]
[1760150777553,0.00757158,113240.0,113230.0,0.6542269]
[1760150777759,0.2027136,113250.0,113240.0,0.036]
[1760150777948,0.49612236,113260.0,113240.0,0.176]
[1760150778250,0.49612236,113260.0,113250.0,0.01313]
[1760150778251,0.51784236,113260.0,113250.0,0.01313]
[1760150778547,0.51784236,113260.0,113240.0,0.01313]
[1760150778548,0.109931,113250.0,113240.0,0.01313]
[1760150778749,0.05010764,113250.0,113240.0,0.156]
[1760150778950,0.49911864,113250.0,113240.0,0.156]
[1760150779545,0.09721443,113250.0,113240.0,0.6050187]
[1760150779851,0.15750597,113260.0,113250.0,0.036]
[1760150780058,0.470725,113260.0,113250.0,0.166]
[1760150780249,0.06929129,113260.0,113250.0,0.166]
[1760150780445,0.15749449,113260.0,113250.0,0.166]
[1760150782056,0.28740616,113260.0,113250.0,0.166]
[1760150782650,0.64820616,113260.0,113250.0,0.166]
[1760150783159,0.60063487,113260.0,113250.0,0.166]
[1760150783549,0.60063487,113260.0,113250.0,0.13]
[1760150783550,1.49232418,113260.0,113250.0,0.13]
[1760150783754,0.1099465,113230.0,113220.0,0.01313]
[1760150783954,0.4707465,113230.0,113220.0,0.12313]
[1760150784856,0.4707465,113230.0,113220.0,0.11]
[1760150784857,0.4784865,113230.0,113220.0,0.11]
[1760150785056,0.8784865,113230.0,113220.0,0.111]
[1760150785459,0.8344865,113230.0,113220.0,0.111]
[1760150785651,0.4267465,113230.0,113220.0,0.11]
[1760150785852,0.0659465,113230.0,113220.0,0.146]
[1760150786049,0.4267465,113230.0,113220.0,0.146]
[1760150787051,0.4267465,113230.0,113220.0,0.11]
[1760150787248,0.4267465,113230.0,113220.0,0.12313]
[1760150787458,0.4267465,113230.0,113220.0,0.146]
[1760150788657,0.4267465,113230.0,113220.0,0.11]
[1760150788658,0.4344865,113230.0,113220.0,0.11]
[1760150788862,0.77985828,113230.0,113220.0,0.11]
[1760150789057,0.02172,113230.0,113220.0,0.146]
[1760150789247,0.1099465,113230.0,113220.0,0.146]
[1760150789450,0.02172,113230.0,113220.0,0.546]
[1760150789649,0.02172,113240.0,113230.0,0.036]
[1760150789859,0.04160904,113240.0,113230.0,0.156]
[1760150790655,0.12982774,113240.0,113230.0,0.156]
[1760150790860,0.49062774,113240.0,113230.0,0.156]
[1760150791060,0.12982774,113240.0,113230.0,0.156]
[1760150791361,0.06971662,113260.0,113250.0,0.124211]
[1760150791660,0.17685167,113280.0,113270.0,0.036]
[1760150791862,0.08193464,113280.0,113270.0,0.15287]
[1760150792164,0.53092224,113280.0,113270.0,0.15287]
[1760150792363,0.02172,113250.0,113240.0,0.036]
[1760150792565,0.469731,113250.0,113240.0,0.14]
[1760150792865,0.1099388,113240.0,113230.0,0.036]
[1760150793066,0.4707388,113240.0,113230.0,0.166]
[1760150793561,0.60425905,113240.0,113230.0,0.166]
[1760150793758,0.60425905,113240.0,113230.0,0.14313]
[1760150793958,0.60425905,113240.0,113230.0,0.13]
[1760150794267,1.01059905,113240.0,113230.0,0.13]
[1760150794557,1.00425905,113240.0,113230.0,0.13]
[1760150794952,0.60425905,113240.0,113230.0,0.13]
[1760150795560,0.60425905,113240.0,113230.0,0.166]
[1760150795761,0.51604025,113240.0,113230.0,0.166]
[1760150796864,0.60425905,113240.0,113230.0,0.166]
[1760150797162,0.24345905,113240.0,113230.0,0.166]
[1760150797865,0.60425905,113240.0,113230.0,0.166]
[1760150798069,0.15524025,113240.0,113230.0,0.166]
[1760150798454,0.13352025,113240.0,113230.0,1.0150266]
[1760150798657,0.79437958,113260.0,113230.0,1.0150266]
[1760150798960,0.0232,113250.0,113240.0,0.03692]
[1760150799269,0.79437958,113260.0,113240.0,0.03692]
[1760150799270,0.4722078,113260.0,113250.0,0.03692]
[1760150799465,0.4722078,113260.0,113250.0,0.09692]
[1760150800256,0.4722078,113260.0,113250.0,0.06]
[1760150800462,1.22447958,113260.0,113250.0,0.06]
[1760150800963,1.70447958,113260.0,113250.0,0.06]
[1760150801160,0.1114188,113240.0,113220.0,0.01313]
[1760150801366,0.4722188,113240.0,113220.0,0.13313]
[1760150802060,0.60708854,113240.0,113220.0,0.2213632]
[1760150802261,0.15806974,113240.0,113230.0,0.03692]
[1760150802466,0.15806974,113240.0,113230.0,0.17692]
[1760150802662,0.24628854,113240.0,113230.0,0.17645603]
[1760150802867,0.15806974,113240.0,113230.0,0.16692]
[1760150803362,1.36228032,113240.0,113230.0,0.14]
[1760150803567,0.1114343,113220.0,113210.0,0.03692]
[1760150803760,0.45680608,113220.0,113210.0,0.14692]
[1760150804064,0.81760608,113220.0,113210.0,0.14692]
[1760150804261,0.4722343,113220.0,113210.0,0.14692]
[1760150804663,0.4722343,113220.0,113210.0,0.14792]
[1760150805668,0.384,113220.0,113210.0,0.2361621]
[1760150805867,0.384,113220.0,113210.0,0.14792]
[1760150806071,0.4722344,113220.0,113210.0,0.14792]
[1760150806270,0.4722344,113220.0,113210.0,0.14692]
[1760150806571,0.1114344,113220.0,113210.0,0.14692]
[1760150807084,0.4722344,113220.0,113210.0,0.14692]
[1760150807675,0.4722344,113220.0,113210.0,0.11]
[1760150807874,0.4722344,113220.0,113210.0,0.13328]
[1760150808080,0.4282344,113220.0,113210.0,0.14692]
[1760150808373,0.4494744,113220.0,113210.0,0.14692]
[1760150809164,0.79484618,113220.0,113210.0,0.14692]
[1760150810164,0.79484618,113220.0,113210.0,0.12364]
[1760150810971,0.79484618,113220.0,113210.0,0.11]
[1760150811476,0.4494744,113220.0,113210.0,0.12286]
[1760150812670,0.8494744,113220.0,113210.0,0.11]
[1760150812867,0.8494744,113220.0,113180.0,0.67816115]
[1760150812868,0.1107078,113190.0,113180.0,0.02723696]
[1760150813172,0.1107078,113190.0,113180.0,0.16608]
[1760150813470,0.48832182,113190.0,113180.0,0.13]
[1760150813774,0.48832182,113190.0,113180.0,0.16608]
[1760150814171,0.48832182,113190.0,113180.0,0.131]
[1760150814973,0.48832182,113190.0,113180.0,0.16708]
[1760150815575,0.48832182,113190.0,113180.0,0.16608]
[1760150815873,0.44432182,113190.0,113180.0,0.16708]
[1760150816384,0.44432182,113190.0,113180.0,0.131]
[1760150816679,0.51619248,113190.0,113180.0,0.16708]
[1760150819369,0.52601248,113190.0,113180.0,0.131]
[1760150819573,0.93187761,113190.0,113180.0,0.131]
[1760150819772,0.92205761,113190.0,113180.0,0.16708]
[1760150820174,0.92205761,113190.0,113180.0,0.16608]
[1760150820768,0.92205761,113190.0,113180.0,0.18902514]
[1760150820973,0.07187066,113190.0,113180.0,0.58902514]
[1760150821275,0.4715038,113200.0,113190.0,0.03608]
[1760150821476,0.87736893,113200.0,113190.0,0.16608]
[1760150821676,0.95549077,113200.0,113190.0,0.13]
[1760150821876,1.35549077,113200.0,113190.0,0.13]
[1760150822281,1.37251241,113200.0,113190.0,0.13]
[1760150824076,1.37251241,113200.0,113170.0,0.05990132]
[1760150824077,0.1107157,113180.0,113170.0,0.05990132]
[1760150824279,0.87738083,113180.0,113170.0,0.17990132]
[1760150824482,1.64500083,113180.0,113170.0,0.14382132]
[1760150824674,1.2391357,113180.0,113170.0,0.12088]
[1760150824876,1.55673513,113180.0,113170.0,0.00088]
[1760150825382,1.64500083,113180.0,113170.0,0.00088]
[1760150825582,2.11500083,113180.0,113170.0,0.00188]
[1760150825783,1.64500083,113180.0,113170.0,0.00188]
[1760150826485,1.55673513,113180.0,113170.0,0.03482132]
[1760150826681,0.02245,113180.0,113170.0,0.1362335]
[1760150826887,0.02245,113180.0,113170.0,0.6462335]
[1760150827087,0.02245,113180.0,113170.0,1.0070335]
[1760150827488,0.42831513,113180.0,113170.0,1.0070335]
[1760150827982,0.42831513,113180.0,113170.0,0.6101535]
[1760150828183,0.92669323,113180.0,113170.0,0.2101535]
[1760150828387,1.41495893,113180.0,113170.0,0.12188]
[1760150828883,1.41495893,113180.0,113170.0,0.00188]
[1760150829089,0.02901,113170.0,113160.0,9.784e-05]
[1760150829283,0.79567513,113170.0,113160.0,0.07009784]
[1760150829482,0.38299,113170.0,113160.0,0.18061914]
[1760150829688,0.78885513,113170.0,113160.0,0.18061914]
[1760150829988,0.1529481,113180.0,113170.0,0.1241135]
[1760150830287,0.5137481,113180.0,113170.0,0.2341135]
[1760150830482,0.56563323,113180.0,113170.0,0.11]
[1760150830682,1.05389893,113180.0,113170.0,0.11]
[1760150830880,1.41469893,113180.0,113170.0,0.11]
[1760150831190,0.1529481,113180.0,113170.0,0.14584]
[1760150831483,0.55881323,113180.0,113170.0,0.14584]
[1760150831886,0.55881323,113180.0,113170.0,0.2341135]
[1760150832194,1.00787893,113180.0,113170.0,0.14684]
[1760150832491,1.01769893,113180.0,113170.0,0.111]
[1760150832788,0.55881323,113180.0,113170.0,0.14684]
[1760150833183,0.55881323,113180.0,113170.0,0.2351135]
[1760150833379,0.64707893,113180.0,113170.0,0.14684]
[1760150833692,1.00787893,113180.0,113170.0,0.14684]
[1760150834189,1.01469893,113180.0,113170.0,0.111]
[1760150834388,0.55881323,113180.0,113170.0,0.2351135]
[1760150835192,0.55881323,113180.0,113170.0,0.5959135]
[1760150835893,0.1529481,113180.0,113170.0,0.5959135]
[1760150836098,0.55881323,113180.0,113170.0,0.5959135]
[1760150836396,0.55881323,113180.0,113170.0,0.2351135]
[1760150836699,0.64707893,113180.0,113170.0,0.14684]
[1760150838291,1.01769893,113180.0,113170.0,0.111]
[1760150838491,1.41769893,113180.0,113170.0,0.111]
[1760150841291,1.0118338,113180.0,113170.0,0.111]
[1760150841497,1.41769893,113180.0,113170.0,0.111]
[1760150842906,1.0118338,113180.0,113170.0,0.111]
[1760150843304,1.41769893,113180.0,113170.0,0.111]
[1760150843701,0.1172836,113170.0,113160.0,9.784e-05]
[1760150843907,0.88394873,113170.0,113160.0,9.784e-05]
[1760150844909,0.88394873,113170.0,113160.0,0.00109784]
[1760150846013,0.88394873,113170.0,113160.0,0.01109784]
[1760150847506,0.02219,113140.0,113130.0,0.39664]
[1760150847705,0.87715213,113140.0,113130.0,0.16584]
[1760150848113,0.87715213,113140.0,113130.0,0.1436]
[1760150848315,0.87715213,113140.0,113130.0,0.13]
[1760150848517,0.87725813,113140.0,113130.0,0.13]
[1760150849014,0.87725813,113140.0,113130.0,0.131]
[1760150849205,0.87725813,113140.0,113130.0,0.0890793]
[1760150849206,1.50697213,113140.0,113130.0,0.0890793]
[1760150849404,1.50697213,113140.0,113130.0,0.001]
[1760150849405,1.72697213,113140.0,113130.0,0.001]
[1760150849611,1.28697213,113140.0,113130.0,0.001]
[1760150849811,0.1105026,113120.0,113110.0,0.0136]
[1760150850015,0.87716773,113120.0,113110.0,0.16584]
[1760150850213,0.87727373,113120.0,113110.0,0.16584]
[1760150850814,0.4714086,113120.0,113110.0,0.16584]
[1760150851011,0.87727373,113120.0,113110.0,0.16584]
[1760150851319,0.51647383,113120.0,113110.0,0.16784]
[1760150851915,0.87727383,113120.0,113110.0,0.16784]
[1760150852211,0.87727383,113120.0,113110.0,0.16584]
[1760150852416,0.87727383,113120.0,113110.0,0.16684]
[1760150852617,0.4714087,113120.0,113110.0,0.16684]
[1760150852812,0.87727383,113120.0,113110.0,0.16684]
[1760150853816,0.87727383,113120.0,113110.0,0.16584]
[1760150854112,0.60541495,113120.0,113110.0,0.16584]
[1760150854314,1.02826527,113120.0,113110.0,0.56584]
[1760150854714,0.62240014,113120.0,113110.0,0.56584]
[1760150854910,0.66746527,113120.0,113110.0,0.56584]
[1760150855115,1.03508527,113120.0,113110.0,0.5436]
[1760150855316,1.02826527,113120.0,113110.0,0.56584]
[1760150856013,0.13411225,113120.0,113110.0,1.0149605]
[1760150856313,0.65048008,113120.0,113110.0,0.16584]
[1760150856613,0.66756169,113120.0,113110.0,0.56584]
[1760150856918,0.66756169,113120.0,113110.0,0.92664]
[1760150856919,0.13411225,113120.0,113110.0,0.92664]
[1760150857420,0.13411225,113120.0,113110.0,0.56584]
[1760150857607,0.65048028,113120.0,113110.0,0.16584]
[1760150858608,0.65048028,113120.0,113110.0,0.92664]
[1760150859016,0.65048028,113120.0,113110.0,0.56584]
[1760150859217,0.65048028,113120.0,113110.0,0.92664]
[1760150859418,0.65048028,113120.0,113110.0,0.56584]
[1760150859718,1.02840321,113120.0,113110.0,0.16584]
[1760150859921,1.03522321,113120.0,113110.0,0.13]
[1760150861915,0.1094263,113090.0,113080.0,0.06692091]
[1760150862116,0.51537485,113090.0,113080.0,0.19692091]
[1760150862311,0.87617485,113090.0,113080.0,0.19692091]
[1760150862516,0.87617485,113090.0,113080.0,0.19598091]